{"text_format":"3","workbook":"xlsx","n_sheets":2,"sheets":["Harmonogram pracowników","Ustawienia"],"not_rendered":{"defined_names":21},"read":"whole","date_system":"1900"}

{"sheet":"Harmonogram pracowników","index":0,"n_rows":296,"n_cols":21,"rows_kept":296,"merged":[[6,1,6,9],[66,1,66,9],[126,1,126,9],[186,1,186,9],[246,1,246,9]]}
["Harmonogram pracy zmianowej"]
[]
[null,"RAZEM:",null,{"$f":"SUM(4:4)","v":{"v":56,"d":"56.00"}}]
[null,"GODZINY:",null,{"$f":"Suma_godziny_na_dzień_pracownik","v":{"v":8,"d":"8.00"}},{"v":8,"d":"8.00"},{"v":8,"d":"8.00"},{"v":8,"d":"8.00"},{"v":8,"d":"8.00"},{"v":8,"d":"8.00"},{"v":8,"d":"8.00"},{"v":0,"d":"0.00"},{"v":0,"d":"0.00"},{"v":0,"d":"0.00"},{"v":0,"d":"0.00"},{"v":0,"d":"0.00"},{"v":0,"d":"0.00"},{"v":0,"d":"0.00"},{"v":0,"d":"0.00"},{"v":0,"d":"0.00"},{"v":0,"d":"0.00"},{"v":0,"d":"0.00"}]
[null,"PRACOWNIK:",null,"Korzun, D","Rolecki, M","Poliszkiewicz, M","Rolecki, M","Kretowicz, M","Maślinski, J","Stachnio, R"]
[]
[null,"2012-07-16T09:00:00"]
[null,{"$f":"B7","v":41106.375},{"$nulls":5},"Urlop"]
[null,{"$f":"Wyświetlanie_okresów","v":":15"},null,"Recepcjonista",{"$nulls":3},"Urlop"]
[null,":30",null,"Recepcjonista",{"$nulls":3},"Urlop"]
[null,":45",null,"Recepcjonista","Przełożony",null,"Obsługa klienta","Urlop"]
[null,"10:00 AM",null,"Recepcjonista","Przełożony",null,"Obsługa klienta","Urlop"]
[null,":15",null,"Recepcjonista","Przełożony",null,"Obsługa klienta","Urlop"]
[null,":30",null,"Recepcjonista","Przełożony",null,"Obsługa klienta","Urlop","Księgowość"]
[null,":45",null,"Recepcjonista","Przełożony",null,"Obsługa klienta","Urlop","Księgowość","Woźny"]
[null,"11:00 AM",null,"Recepcjonista","Przełożony",null,"Obsługa klienta","Urlop","Księgowość","Woźny"]
[null,":15",null,"Recepcjonista","Przełożony","Przewodnik","Obsługa klienta","Urlop","Księgowość","Woźny"]
[null,":30",null,"Recepcjonista","Przerwa","Przewodnik","Obsługa klienta","Urlop","Księgowość","Woźny"]
[null,":45",null,"Obiad","Przełożony","Przewodnik","Obsługa klienta","Urlop","Księgowość","Woźny"]
[null,"12:00 PM",null,"Obiad","Przełożony","Przewodnik","Obsługa klienta","Urlop","Księgowość","Woźny"]
[null,":15",null,"Recepcjonista","Przełożony","Przewodnik","Obsługa klienta","Urlop","Przerwa","Woźny"]
[null,":30",null,"Recepcjonista","Przełożony","Przerwa","Obsługa klienta","Urlop","Telefony","Przerwa"]
[null,":45",null,"Recepcjonista","Przełożony","Przewodnik","Obsługa klienta","Urlop","Telefony","Woźny"]
[null,"1:00 PM",null,"Recepcjonista","Przełożony","Przewodnik","Obsługa klienta","Urlop","Telefony","Woźny"]
[null,":15",null,"Recepcjonista","Przełożony","Przewodnik","Obiad","Urlop","Telefony","Woźny"]
[null,":30",null,null,"Przełożony","Przewodnik","Obiad","Urlop","Telefony","Woźny"]
[null,":45",null,null,"Przełożony","Przewodnik","Obiad","Urlop","Obiad","Woźny"]
[null,"2:00 PM",null,"Kasjer","Obiad","Przewodnik","Obiad","Urlop","Obiad","Woźny"]
[null,":15",null,"Kasjer","Obiad","Przewodnik","Obsługa klienta","Urlop","Telefony","Woźny"]
[null,":30",null,"Kasjer","Obiad","Obiad","Obsługa klienta","Urlop","Telefony","Obiad"]
[null,":45",null,"Kasjer","Obiad","Obiad","Obsługa klienta","Urlop","Telefony","Obiad"]
[null,"3:00 PM",null,"Kasjer","Bezpieczeństwo","Obiad","Obsługa klienta","Urlop","Telefony","Obiad"]
[null,":15",null,"Kasjer","Bezpieczeństwo","Obiad","Obsługa klienta","Urlop","Telefony","Obiad"]
[null,":30",null,"Kasjer","Bezpieczeństwo","Przewodnik","Obsługa klienta","Urlop","Telefony","Zamknięcie"]
[null,":45",null,"Kasjer","Bezpieczeństwo","Przewodnik","Obsługa klienta","Urlop","Telefony","Zamknięcie"]
[null,"4:00 PM",null,"Kasjer","Bezpieczeństwo","Przewodnik","Obsługa klienta","Urlop","Przerwa","Zamknięcie"]
[null,":15",null,"Przerwa","Bezpieczeństwo","Przewodnik","Przerwa","Urlop","Telefony","Zamknięcie"]
[null,":30",null,"Kasjer","Bezpieczeństwo","Przewodnik","Obsługa klienta","Urlop","Telefony","Zamknięcie"]
[null,":45",null,"Kasjer","Bezpieczeństwo","Przewodnik","Obsługa klienta","Urlop","Telefony","Zamknięcie"]
[null,"5:00 PM",null,"Kasjer","Bezpieczeństwo","Przewodnik","Obsługa klienta",null,"Telefony","Zamknięcie"]
[null,":15",null,"Kasjer","Bezpieczeństwo","Przewodnik","Obsługa klienta",null,"Telefony","Zamknięcie"]
[null,":30",null,"Kasjer","Bezpieczeństwo","Przewodnik","Obsługa klienta",null,"Telefony","Zamknięcie"]
[null,":45",null,"Kasjer","Bezpieczeństwo","Przewodnik","Obsługa klienta",null,"Telefony","Zamknięcie"]
[null,"6:00 PM",null,"Kasjer","Bezpieczeństwo","Przewodnik","Obsługa klienta",null,"Telefony","Zamknięcie"]
[null,":15",null,"Kasjer","Bezpieczeństwo","Przewodnik","Obsługa klienta",null,"Telefony","Zamknięcie"]
[null,":30",null,null,"Bezpieczeństwo","Przewodnik","Obsługa klienta",null,"Telefony","Zamknięcie"]
[null,":45",null,null,"Bezpieczeństwo","Przerwa","Obsługa klienta",null,"Telefony","Przerwa"]
[null,"7:00 PM",{"$nulls":3},"Przewodnik",null,null,"Telefony","Zamknięcie"]
[null,":15",{"$nulls":3},"Przewodnik",null,null,"Telefony","Zamknięcie"]
[null,":30",{"$nulls":3},"Przewodnik",{"$nulls":3},"Zamknięcie"]
[null,":45",{"$nulls":3},"Przewodnik",{"$nulls":3},"Zamknięcie"]
[null,"8:00 PM",{"$nulls":3},"Przewodnik",{"$nulls":3},"Zamknięcie"]
[null,":15",{"$nulls":3},"Przewodnik"]
[null,":30",{"$nulls":3},"Przewodnik"]
[null,":45"]
[null,"9:00 PM"]
[]
[]
[]
[]
["Harmonogram pracowników"]
[]
[null,"RAZEM:",null,{"$f":"SUM(64:64)","v":{"v":56,"d":"56.00"}}]
[null,"GODZINY:",null,{"$f":"Suma_godziny_na_dzień_pracownik","v":{"v":8,"d":"8.00"}},{"v":8,"d":"8.00"},{"v":8,"d":"8.00"},{"v":8,"d":"8.00"},{"v":8,"d":"8.00"},{"v":8,"d":"8.00"},{"v":8,"d":"8.00"},{"v":0,"d":"0.00"},{"v":0,"d":"0.00"},{"v":0,"d":"0.00"},{"v":0,"d":"0.00"},{"v":0,"d":"0.00"},{"v":0,"d":"0.00"},{"v":0,"d":"0.00"},{"v":0,"d":"0.00"},{"v":0,"d":"0.00"},{"v":0,"d":"0.00"},{"v":0,"d":"0.00"}]
[null,"PRACOWNIK:",null,"Korzun, D","Rolecki, M","Poliszkiewicz, M","Myrcha, J","Kretowicz, M","Maślinski, J","Stachnio, R"]
[]
[null,{"$f":"B7+1","v":"2012-07-17T09:00:00"}]
[null,{"$f":"B67","v":41107.375},{"$nulls":5},"Urlop"]
[null,{"$f":"Wyświetlanie_okresów","v":":15"},null,"Recepcjonista",{"$nulls":3},"Urlop"]
[null,":30",null,"Recepcjonista",{"$nulls":3},"Urlop"]
[null,":45",null,"Recepcjonista","Przełożony",null,"Obsługa klienta","Urlop"]
[null,"1:00 AM",null,"Recepcjonista","Przełożony",null,"Obsługa klienta","Urlop"]
[null,":15",null,"Recepcjonista","Przełożony",null,"Obsługa klienta","Urlop"]
[null,":30",null,"Recepcjonista","Przełożony",null,"Obsługa klienta","Urlop","Księgowość"]
[null,":45",null,"Recepcjonista","Przełożony",null,"Obsługa klienta","Urlop","Księgowość","Woźny"]
[null,"2:00 AM",null,"Recepcjonista","Przełożony",null,"Obsługa klienta","Urlop","Księgowość","Woźny"]
[null,":15",null,"Recepcjonista","Przełożony","Przewodnik","Obsługa klienta","Urlop","Księgowość","Woźny"]
[null,":30",null,"Recepcjonista","Przerwa","Przewodnik","Obsługa klienta","Urlop","Księgowość","Woźny"]
[null,":45",null,"Obiad","Przełożony","Przewodnik","Obsługa klienta","Urlop","Księgowość","Woźny"]
[null,"3:00 AM",null,"Obiad","Przełożony","Przewodnik","Obsługa klienta","Urlop","Księgowość","Woźny"]
[null,":15",null,"Recepcjonista","Przełożony","Przewodnik","Obsługa klienta","Urlop","Przerwa","Woźny"]
[null,":30",null,"Recepcjonista","Przełożony","Przerwa","Obsługa klienta","Urlop","Telefony","Przerwa"]
[null,":45",null,"Recepcjonista","Przełożony","Przewodnik","Obsługa klienta","Urlop","Telefony","Woźny"]
[null,"4:00 AM",null,"Recepcjonista","Przełożony","Przewodnik","Obsługa klienta","Urlop","Telefony","Woźny"]
[null,":15",null,"Recepcjonista","Przełożony","Przewodnik","Obiad","Urlop","Telefony","Woźny"]
[null,":30",null,null,"Przełożony","Przewodnik","Obiad","Urlop","Telefony","Woźny"]
[null,":45",null,null,"Przełożony","Przewodnik","Obiad","Urlop","Obiad","Woźny"]
[null,"5:00 AM",null,"Kasjer","Obiad","Przewodnik","Obiad","Urlop","Obiad","Woźny"]
[null,":15",null,"Kasjer","Obiad","Przewodnik","Obsługa klienta","Urlop","Telefony","Woźny"]
[null,":30",null,"Kasjer","Obiad","Obiad","Obsługa klienta","Urlop","Telefony","Obiad"]
[null,":45",null,"Kasjer","Obiad","Obiad","Obsługa klienta","Urlop","Telefony","Obiad"]
[null,"6:00 AM",null,"Kasjer","Bezpieczeństwo","Obiad","Obsługa klienta","Urlop","Telefony","Obiad"]
[null,":15",null,"Kasjer","Bezpieczeństwo","Obiad","Obsługa klienta","Urlop","Telefony","Obiad"]
[null,":30",null,"Kasjer","Bezpieczeństwo","Przewodnik","Obsługa klienta","Urlop","Telefony","Zamknięcie"]
[null,":45",null,"Kasjer","Bezpieczeństwo","Przewodnik","Obsługa klienta","Urlop","Telefony","Zamknięcie"]
[null,"7:00 AM",null,"Kasjer","Bezpieczeństwo","Przewodnik","Obsługa klienta","Urlop","Przerwa","Zamknięcie"]
[null,":15",null,"Przerwa","Bezpieczeństwo","Przewodnik","Przerwa","Urlop","Telefony","Zamknięcie"]
[null,":30",null,"Kasjer","Bezpieczeństwo","Przewodnik","Obsługa klienta","Urlop","Telefony","Zamknięcie"]
[null,":45",null,"Kasjer","Bezpieczeństwo","Przewodnik","Obsługa klienta","Urlop","Telefony","Zamknięcie"]
[null,"8:00 AM",null,"Kasjer","Bezpieczeństwo","Przewodnik","Obsługa klienta",null,"Telefony","Zamknięcie"]
[null,":15",null,"Kasjer","Bezpieczeństwo","Przewodnik","Obsługa klienta",null,"Telefony","Zamknięcie"]
[null,":30",null,"Kasjer","Bezpieczeństwo","Przewodnik","Obsługa klienta",null,"Telefony","Zamknięcie"]
[null,":45",null,"Kasjer","Bezpieczeństwo","Przewodnik","Obsługa klienta",null,"Telefony","Zamknięcie"]
[null,"9:00 AM",null,"Kasjer","Bezpieczeństwo","Przewodnik","Obsługa klienta",null,"Telefony","Zamknięcie"]
[null,":15",null,"Kasjer","Bezpieczeństwo","Przewodnik","Obsługa klienta",null,"Telefony","Zamknięcie"]
[null,":30",null,null,"Bezpieczeństwo","Przewodnik","Obsługa klienta",null,"Telefony","Zamknięcie"]
[null,":45",null,null,"Bezpieczeństwo","Przerwa","Obsługa klienta",null,"Telefony","Przerwa"]
[null,"10:00 AM",{"$nulls":3},"Przewodnik",null,null,"Telefony","Zamknięcie"]
[null,":15",{"$nulls":3},"Przewodnik",null,null,"Telefony","Zamknięcie"]
[null,":30",{"$nulls":3},"Przewodnik",{"$nulls":3},"Zamknięcie"]
[null,":45",{"$nulls":3},"Przewodnik",{"$nulls":3},"Zamknięcie"]
[null,"11:00 AM",{"$nulls":3},"Przewodnik",{"$nulls":3},"Zamknięcie"]
[null,":15",{"$nulls":3},"Przewodnik"]
[null,":30",{"$nulls":3},"Przewodnik"]
[null,":45"]
[null,"12:00 PM"]
[]
[]
[]
[]
["Harmonogram pracowników"]
[]
[null,"RAZEM:",null,{"$f":"SUM(124:124)","v":{"v":56,"d":"56.00"}}]
[null,"GODZINY:",null,{"$f":"Suma_godziny_na_dzień_pracownik","v":{"v":8,"d":"8.00"}},{"v":8,"d":"8.00"},{"v":8,"d":"8.00"},{"v":8,"d":"8.00"},{"v":8,"d":"8.00"},{"v":8,"d":"8.00"},{"v":8,"d":"8.00"},{"v":0,"d":"0.00"},{"v":0,"d":"0.00"},{"v":0,"d":"0.00"},{"v":0,"d":"0.00"},{"v":0,"d":"0.00"},{"v":0,"d":"0.00"},{"v":0,"d":"0.00"},{"v":0,"d":"0.00"},{"v":0,"d":"0.00"},{"v":0,"d":"0.00"},{"v":0,"d":"0.00"}]
[null,"PRACOWNIK:",null,"Korzun, D","Rolecki, M","Poliszkiewicz, M","Myrcha, J","Kretowicz, M","Maślinski, J","Stachnio, R"]
[]
[null,{"$f":"B67+1","v":"2012-07-18T09:00:00"}]
[null,{"$f":"B127","v":41108.375},{"$nulls":5},"Urlop"]
[null,{"$f":"Wyświetlanie_okresów","v":":15"},null,"Recepcjonista",{"$nulls":3},"Urlop"]
[null,":30",null,"Recepcjonista",{"$nulls":3},"Urlop"]
[null,":45",null,"Recepcjonista","Przełożony",null,"Obsługa klienta","Urlop"]
[null,"4:00 PM",null,"Recepcjonista","Przełożony",null,"Obsługa klienta","Urlop"]
[null,":15",null,"Recepcjonista","Przełożony",null,"Obsługa klienta","Urlop"]
[null,":30",null,"Recepcjonista","Przełożony",null,"Obsługa klienta","Urlop","Księgowość"]
[null,":45",null,"Recepcjonista","Przełożony",null,"Obsługa klienta","Urlop","Księgowość","Woźny"]
[null,"5:00 PM",null,"Recepcjonista","Przełożony",null,"Obsługa klienta","Urlop","Księgowość","Woźny"]
[null,":15",null,"Recepcjonista","Przełożony","Przewodnik","Obsługa klienta","Urlop","Księgowość","Woźny"]
[null,":30",null,"Recepcjonista","Przerwa","Przewodnik","Obsługa klienta","Urlop","Księgowość","Woźny"]
[null,":45",null,"Obiad","Przełożony","Przewodnik","Obsługa klienta","Urlop","Księgowość","Woźny"]
[null,"6:00 PM",null,"Obiad","Przełożony","Przewodnik","Obsługa klienta","Urlop","Księgowość","Woźny"]
[null,":15",null,"Recepcjonista","Przełożony","Przewodnik","Obsługa klienta","Urlop","Przerwa","Woźny"]
[null,":30",null,"Recepcjonista","Przełożony","Przerwa","Obsługa klienta","Urlop","Telefony","Przerwa"]
[null,":45",null,"Recepcjonista","Przełożony","Przewodnik","Obsługa klienta","Urlop","Telefony","Woźny"]
[null,"7:00 PM",null,"Recepcjonista","Przełożony","Przewodnik","Obsługa klienta","Urlop","Telefony","Woźny"]
[null,":15",null,"Recepcjonista","Przełożony","Przewodnik","Obiad","Urlop","Telefony","Woźny"]
[null,":30",null,null,"Przełożony","Przewodnik","Obiad","Urlop","Telefony","Woźny"]
[null,":45",null,null,"Przełożony","Przewodnik","Obiad","Urlop","Obiad","Woźny"]
[null,"8:00 PM",null,"Kasjer","Obiad","Przewodnik","Obiad","Urlop","Obiad","Woźny"]
[null,":15",null,"Kasjer","Obiad","Przewodnik","Obsługa klienta","Urlop","Telefony","Woźny"]
[null,":30",null,"Kasjer","Obiad","Obiad","Obsługa klienta","Urlop","Telefony","Obiad"]
[null,":45",null,"Kasjer","Obiad","Obiad","Obsługa klienta","Urlop","Telefony","Obiad"]
[null,"9:00 PM",null,"Kasjer","Bezpieczeństwo","Obiad","Obsługa klienta","Urlop","Telefony","Obiad"]
[null,":15",null,"Kasjer","Bezpieczeństwo","Obiad","Obsługa klienta","Urlop","Telefony","Obiad"]
[null,":30",null,"Kasjer","Bezpieczeństwo","Przewodnik","Obsługa klienta","Urlop","Telefony","Zamknięcie"]
[null,":45",null,"Kasjer","Bezpieczeństwo","Przewodnik","Obsługa klienta","Urlop","Telefony","Zamknięcie"]
[null,"10:00 PM",null,"Kasjer","Bezpieczeństwo","Przewodnik","Obsługa klienta","Urlop","Przerwa","Zamknięcie"]
[null,":15",null,"Przerwa","Bezpieczeństwo","Przewodnik","Przerwa","Urlop","Telefony","Zamknięcie"]
[null,":30",null,"Kasjer","Bezpieczeństwo","Przewodnik","Obsługa klienta","Urlop","Telefony","Zamknięcie"]
[null,":45",null,"Kasjer","Bezpieczeństwo","Przewodnik","Obsługa klienta","Urlop","Telefony","Zamknięcie"]
[null,"11:00 PM",null,"Kasjer","Bezpieczeństwo","Przewodnik","Obsługa klienta",null,"Telefony","Zamknięcie"]
[null,":15",null,"Kasjer","Bezpieczeństwo","Przewodnik","Obsługa klienta",null,"Telefony","Zamknięcie"]
[null,":30",null,"Kasjer","Bezpieczeństwo","Przewodnik","Obsługa klienta",null,"Telefony","Zamknięcie"]
[null,":45",null,"Kasjer","Bezpieczeństwo","Przewodnik","Obsługa klienta",null,"Telefony","Zamknięcie"]
[null,"12:00 AM",null,"Kasjer","Bezpieczeństwo","Przewodnik","Obsługa klienta",null,"Telefony","Zamknięcie"]
[null,":15",null,"Kasjer","Bezpieczeństwo","Przewodnik","Obsługa klienta",null,"Telefony","Zamknięcie"]
[null,":30",null,null,"Bezpieczeństwo","Przewodnik","Obsługa klienta",null,"Telefony","Zamknięcie"]
[null,":45",null,null,"Bezpieczeństwo","Przerwa","Obsługa klienta",null,"Telefony","Przerwa"]
[null,"1:00 AM",{"$nulls":3},"Przewodnik",null,null,"Telefony","Zamknięcie"]
[null,":15",{"$nulls":3},"Przewodnik",null,null,"Telefony","Zamknięcie"]
[null,":30",{"$nulls":3},"Przewodnik",{"$nulls":3},"Zamknięcie"]
[null,":45",{"$nulls":3},"Przewodnik",{"$nulls":3},"Zamknięcie"]
[null,"2:00 AM",{"$nulls":3},"Przewodnik",{"$nulls":3},"Zamknięcie"]
[null,":15",{"$nulls":3},"Przewodnik"]
[null,":30",{"$nulls":3},"Przewodnik"]
[null,":45"]
[null,"3:00 AM"]
[]
[]
[]
[]
["Harmonogram pracowników"]
[]
[null,"RAZEM:",null,{"$f":"SUM(184:184)","v":{"v":56,"d":"56.00"}}]
[null,"GODZINY:",null,{"$f":"Suma_godziny_na_dzień_pracownik","v":{"v":8,"d":"8.00"}},{"v":8,"d":"8.00"},{"v":8,"d":"8.00"},{"v":8,"d":"8.00"},{"v":8,"d":"8.00"},{"v":8,"d":"8.00"},{"v":8,"d":"8.00"},{"v":0,"d":"0.00"},{"v":0,"d":"0.00"},{"v":0,"d":"0.00"},{"v":0,"d":"0.00"},{"v":0,"d":"0.00"},{"v":0,"d":"0.00"},{"v":0,"d":"0.00"},{"v":0,"d":"0.00"},{"v":0,"d":"0.00"},{"v":0,"d":"0.00"},{"v":0,"d":"0.00"}]
[null,"PRACOWNIK:",null,"Korzun, D","Rolecki, M","Poliszkiewicz, M","Myrcha, J","Kretowicz, M","Maślinski, J","Stachnio, R"]
[]
[null,{"$f":"B127+1","v":"2012-07-19T09:00:00"}]
[null,{"$f":"B187","v":41109.375},{"$nulls":5},"Urlop"]
[null,{"$f":"Wyświetlanie_okresów","v":":15"},null,"Recepcjonista",{"$nulls":3},"Urlop"]
[null,":30",null,"Recepcjonista",{"$nulls":3},"Urlop"]
[null,":45",null,"Recepcjonista","Przełożony",null,"Obsługa klienta","Urlop"]
[null,"7:00 AM",null,"Recepcjonista","Przełożony",null,"Obsługa klienta","Urlop"]
[null,":15",null,"Recepcjonista","Przełożony",null,"Obsługa klienta","Urlop"]
[null,":30",null,"Recepcjonista","Przełożony",null,"Obsługa klienta","Urlop","Księgowość"]
[null,":45",null,"Recepcjonista","Przełożony",null,"Obsługa klienta","Urlop","Księgowość","Woźny"]
[null,"8:00 AM",null,"Recepcjonista","Przełożony",null,"Obsługa klienta","Urlop","Księgowość","Woźny"]
[null,":15",null,"Recepcjonista","Przełożony","Przewodnik","Obsługa klienta","Urlop","Księgowość","Woźny"]
[null,":30",null,"Recepcjonista","Przerwa","Przewodnik","Obsługa klienta","Urlop","Księgowość","Woźny"]
[null,":45",null,"Obiad","Przełożony","Przewodnik","Obsługa klienta","Urlop","Księgowość","Woźny"]
[null,"9:00 AM",null,"Obiad","Przełożony","Przewodnik","Obsługa klienta","Urlop","Księgowość","Woźny"]
[null,":15",null,"Recepcjonista","Przełożony","Przewodnik","Obsługa klienta","Urlop","Przerwa","Woźny"]
[null,":30",null,"Recepcjonista","Przełożony","Przerwa","Obsługa klienta","Urlop","Telefony","Przerwa"]
[null,":45",null,"Recepcjonista","Przełożony","Przewodnik","Obsługa klienta","Urlop","Telefony","Woźny"]
[null,"10:00 AM",null,"Recepcjonista","Przełożony","Przewodnik","Obsługa klienta","Urlop","Telefony","Woźny"]
[null,":15",null,"Recepcjonista","Przełożony","Przewodnik","Obiad","Urlop","Telefony","Woźny"]
[null,":30",null,null,"Przełożony","Przewodnik","Obiad","Urlop","Telefony","Woźny"]
[null,":45",null,null,"Przełożony","Przewodnik","Obiad","Urlop","Obiad","Woźny"]
[null,"11:00 AM",null,"Kasjer","Obiad","Przewodnik","Obiad","Urlop","Obiad","Woźny"]
[null,":15",null,"Kasjer","Obiad","Przewodnik","Obsługa klienta","Urlop","Telefony","Woźny"]
[null,":30",null,"Kasjer","Obiad","Obiad","Obsługa klienta","Urlop","Telefony","Obiad"]
[null,":45",null,"Kasjer","Obiad","Obiad","Obsługa klienta","Urlop","Telefony","Obiad"]
[null,"12:00 PM",null,"Kasjer","Bezpieczeństwo","Obiad","Obsługa klienta","Urlop","Telefony","Obiad"]
[null,":15",null,"Kasjer","Bezpieczeństwo","Obiad","Obsługa klienta","Urlop","Telefony","Obiad"]
[null,":30",null,"Kasjer","Bezpieczeństwo","Przewodnik","Obsługa klienta","Urlop","Telefony","Zamknięcie"]
[null,":45",null,"Kasjer","Bezpieczeństwo","Przewodnik","Obsługa klienta","Urlop","Telefony","Zamknięcie"]
[null,"1:00 PM",null,"Kasjer","Bezpieczeństwo","Przewodnik","Obsługa klienta","Urlop","Przerwa","Zamknięcie"]
[null,":15",null,"Przerwa","Bezpieczeństwo","Przewodnik","Przerwa","Urlop","Telefony","Zamknięcie"]
[null,":30",null,"Kasjer","Bezpieczeństwo","Przewodnik","Obsługa klienta","Urlop","Telefony","Zamknięcie"]
[null,":45",null,"Kasjer","Bezpieczeństwo","Przewodnik","Obsługa klienta","Urlop","Telefony","Zamknięcie"]
[null,"2:00 PM",null,"Kasjer","Bezpieczeństwo","Przewodnik","Obsługa klienta",null,"Telefony","Zamknięcie"]
[null,":15",null,"Kasjer","Bezpieczeństwo","Przewodnik","Obsługa klienta",null,"Telefony","Zamknięcie"]
[null,":30",null,"Kasjer","Bezpieczeństwo","Przewodnik","Obsługa klienta",null,"Telefony","Zamknięcie"]
[null,":45",null,"Kasjer","Bezpieczeństwo","Przewodnik","Obsługa klienta",null,"Telefony","Zamknięcie"]
[null,"3:00 PM",null,"Kasjer","Bezpieczeństwo","Przewodnik","Obsługa klienta",null,"Telefony","Zamknięcie"]
[null,":15",null,"Kasjer","Bezpieczeństwo","Przewodnik","Obsługa klienta",null,"Telefony","Zamknięcie"]
[null,":30",null,null,"Bezpieczeństwo","Przewodnik","Obsługa klienta",null,"Telefony","Zamknięcie"]
[null,":45",null,null,"Bezpieczeństwo","Przerwa","Obsługa klienta",null,"Telefony","Przerwa"]
[null,"4:00 PM",{"$nulls":3},"Przewodnik",null,null,"Telefony","Zamknięcie"]
[null,":15",{"$nulls":3},"Przewodnik",null,null,"Telefony","Zamknięcie"]
[null,":30",{"$nulls":3},"Przewodnik",{"$nulls":3},"Zamknięcie"]
[null,":45",{"$nulls":3},"Przewodnik",{"$nulls":3},"Zamknięcie"]
[null,"5:00 PM",{"$nulls":3},"Przewodnik",{"$nulls":3},"Zamknięcie"]
[null,":15",{"$nulls":3},"Przewodnik"]
[null,":30",{"$nulls":3},"Przewodnik"]
[null,":45"]
[null,"6:00 PM"]
[]
[]
[]
[]
["Harmonogram pracowników"]
[]
[null,"RAZEM:",null,{"$f":"SUM(244:244)","v":{"v":56,"d":"56.00"}}]
[null,"GODZINY:",null,{"$f":"Suma_godziny_na_dzień_pracownik","v":{"v":8,"d":"8.00"}},{"v":8,"d":"8.00"},{"v":8,"d":"8.00"},{"v":8,"d":"8.00"},{"v":8,"d":"8.00"},{"v":8,"d":"8.00"},{"v":8,"d":"8.00"},{"v":0,"d":"0.00"},{"v":0,"d":"0.00"},{"v":0,"d":"0.00"},{"v":0,"d":"0.00"},{"v":0,"d":"0.00"},{"v":0,"d":"0.00"},{"v":0,"d":"0.00"},{"v":0,"d":"0.00"},{"v":0,"d":"0.00"},{"v":0,"d":"0.00"},{"v":0,"d":"0.00"}]
[null,"PRACOWNIK:",null,"Korzun, D","Rolecki, M","Poliszkiewicz, M","Myrcha, J","Kretowicz, M","Maślinski, J","Stachnio, R"]
[]
[null,{"$f":"B187+1","v":"2012-07-20T09:00:00"}]
[null,{"$f":"B247","v":41110.375},{"$nulls":5},"Urlop"]
[null,{"$f":"Wyświetlanie_okresów","v":":15"},null,"Recepcjonista",{"$nulls":3},"Urlop"]
[null,":30",null,"Recepcjonista",{"$nulls":3},"Urlop"]
[null,":45",null,"Recepcjonista","Przełożony",null,"Obsługa klienta","Urlop"]
[null,"10:00 PM",null,"Recepcjonista","Przełożony",null,"Obsługa klienta","Urlop"]
[null,":15",null,"Recepcjonista","Przełożony",null,"Obsługa klienta","Urlop"]
[null,":30",null,"Recepcjonista","Przełożony",null,"Obsługa klienta","Urlop","Księgowość"]
[null,":45",null,"Recepcjonista","Przełożony",null,"Obsługa klienta","Urlop","Księgowość","Woźny"]
[null,"11:00 PM",null,"Recepcjonista","Przełożony",null,"Obsługa klienta","Urlop","Księgowość","Woźny"]
[null,":15",null,"Recepcjonista","Przełożony","Przewodnik","Obsługa klienta","Urlop","Księgowość","Woźny"]
[null,":30",null,"Recepcjonista","Przerwa","Przewodnik","Obsługa klienta","Urlop","Księgowość","Woźny"]
[null,":45",null,"Obiad","Przełożony","Przewodnik","Obsługa klienta","Urlop","Księgowość","Woźny"]
[null,"12:00 AM",null,"Obiad","Przełożony","Przewodnik","Obsługa klienta","Urlop","Księgowość","Woźny"]
[null,":15",null,"Recepcjonista","Przełożony","Przewodnik","Obsługa klienta","Urlop","Przerwa","Woźny"]
[null,":30",null,"Recepcjonista","Przełożony","Przerwa","Obsługa klienta","Urlop","Telefony","Przerwa"]
[null,":45",null,"Recepcjonista","Przełożony","Przewodnik","Obsługa klienta","Urlop","Telefony","Woźny"]
[null,"1:00 AM",null,"Recepcjonista","Przełożony","Przewodnik","Obsługa klienta","Urlop","Telefony","Woźny"]
[null,":15",null,"Recepcjonista","Przełożony","Przewodnik","Obiad","Urlop","Telefony","Woźny"]
[null,":30",null,null,"Przełożony","Przewodnik","Obiad","Urlop","Telefony","Woźny"]
[null,":45",null,null,"Przełożony","Przewodnik","Obiad","Urlop","Obiad","Woźny"]
[null,"2:00 AM",null,"Kasjer","Obiad","Przewodnik","Obiad","Urlop","Obiad","Woźny"]
[null,":15",null,"Kasjer","Obiad","Przewodnik","Obsługa klienta","Urlop","Telefony","Woźny"]
[null,":30",null,"Kasjer","Obiad","Obiad","Obsługa klienta","Urlop","Telefony","Obiad"]
[null,":45",null,"Kasjer","Obiad","Obiad","Obsługa klienta","Urlop","Telefony","Obiad"]
[null,"3:00 AM",null,"Kasjer","Bezpieczeństwo","Obiad","Obsługa klienta","Urlop","Telefony","Obiad"]
[null,":15",null,"Kasjer","Bezpieczeństwo","Obiad","Obsługa klienta","Urlop","Telefony","Obiad"]
[null,":30",null,"Kasjer","Bezpieczeństwo","Przewodnik","Obsługa klienta","Urlop","Telefony","Zamknięcie"]
[null,":45",null,"Kasjer","Bezpieczeństwo","Przewodnik","Obsługa klienta","Urlop","Telefony","Zamknięcie"]
[null,"4:00 AM",null,"Kasjer","Bezpieczeństwo","Przewodnik","Obsługa klienta","Urlop","Przerwa","Zamknięcie"]
[null,":15",null,"Przerwa","Bezpieczeństwo","Przewodnik","Przerwa","Urlop","Telefony","Zamknięcie"]
[null,":30",null,"Kasjer","Bezpieczeństwo","Przewodnik","Obsługa klienta","Urlop","Telefony","Zamknięcie"]
[null,":45",null,"Kasjer","Bezpieczeństwo","Przewodnik","Obsługa klienta","Urlop","Telefony","Zamknięcie"]
[null,"5:00 AM",null,"Kasjer","Bezpieczeństwo","Przewodnik","Obsługa klienta",null,"Telefony","Zamknięcie"]
[null,":15",null,"Kasjer","Bezpieczeństwo","Przewodnik","Obsługa klienta",null,"Telefony","Zamknięcie"]
[null,":30",null,"Kasjer","Bezpieczeństwo","Przewodnik","Obsługa klienta",null,"Telefony","Zamknięcie"]
[null,":45",null,"Kasjer","Bezpieczeństwo","Przewodnik","Obsługa klienta",null,"Telefony","Zamknięcie"]
[null,"6:00 AM",null,"Kasjer","Bezpieczeństwo","Przewodnik","Obsługa klienta",null,"Telefony","Zamknięcie"]
[null,":15",null,"Kasjer","Bezpieczeństwo","Przewodnik","Obsługa klienta",null,"Telefony","Zamknięcie"]
[null,":30",null,null,"Bezpieczeństwo","Przewodnik","Obsługa klienta",null,"Telefony","Zamknięcie"]
[null,":45",null,null,"Bezpieczeństwo","Przerwa","Obsługa klienta",null,"Telefony","Przerwa"]
[null,"7:00 AM",{"$nulls":3},"Przewodnik",null,null,"Telefony","Zamknięcie"]
[null,":15",{"$nulls":3},"Przewodnik",null,null,"Telefony","Zamknięcie"]
[null,":30",{"$nulls":3},"Przewodnik",{"$nulls":3},"Zamknięcie"]
[null,":45",{"$nulls":3},"Przewodnik",{"$nulls":3},"Zamknięcie"]
[null,"8:00 AM",{"$nulls":3},"Przewodnik",{"$nulls":3},"Zamknięcie"]
[null,":15",{"$nulls":3},"Przewodnik"]
[null,":30",{"$nulls":3},"Przewodnik"]
[null,":45"]
[null,"9:00 AM"]

{"sheet":"Ustawienia","index":1,"n_rows":26,"n_cols":7,"rows_kept":26}
[null,"Ustawienia"]
[]
[]
[null,"PRZYROSTY GODZINOWE",4]
[]
[]
[]
[]
[]
[null,"Pracownicy",null,"Stanowisko/czas wolny","Kolor","Płatne","Cały dzień"]
[null,"Korzun, D",null,"Obiad",1,false,false]
[null,"Kretowicz, M",null,"Przerwa",1,false,false]
[null,"Maślinski, J",null,"Wolne",1,false,true]
[null,"Mieszkowski, T",null,"Zwolnienie lekarskie",1,false,true]
[null,"Rolecki, M",null,"Wolne na życzenie",1,true,true]
[null,"Myrcha, J",null,"Urlop",1,true,true]
[null,"Stachnio, R",null,"Recepcjonista",2,true,false]
[null,"Poliszkiewicz, M",null,"Kasjer",3,true,false]
[{"$nulls":3},"Przełożony",4,true,false]
[{"$nulls":3},"Przewodnik",5,true,false]
[{"$nulls":3},"Obsługa klienta",6,true,false]
[{"$nulls":3},"Telefony",7,true,false]
[{"$nulls":3},"Bezpieczeństwo",8,true,false]
[{"$nulls":3},"Woźny",9,true,false]
[{"$nulls":3},"Księgowość",10,true,false]
[{"$nulls":3},"Zamknięcie",11,true,false]